bitfinex-derivatives/quotes_BTCF0:USTF0_20260104
["timestamp","ask_amount","ask_price","bid_price","bid_amount"]
[1767512100478,0.010945,91407.0,91397.0,0.0255331]
[1767512100795,0.00218798,91409.0,91399.0,0.0201081]
[1767512101088,0.00218798,91409.0,91400.0,0.0091631]
[1767512102384,0.010945,91406.0,91400.0,0.0091631]
[1767512103086,0.010945,91406.0,91398.0,0.00947534]
[1767512103978,0.010945,91406.0,91398.0,0.01863844]
[1767512104178,0.010945,91406.0,91399.0,0.0091631]
[1767512105781,0.010944,91407.0,91399.0,0.0091631]
[1767512108091,0.010944,91407.0,91400.0,0.01828]
[1767512108280,0.02585582,91406.0,91400.0,0.01828]
[1767512108475,0.010944,91407.0,91400.0,0.01828]
[1767512108681,0.02585582,91406.0,91400.0,0.01828]
[1767512108882,0.010945,91407.0,91400.0,0.01828]
[1767512109078,0.02585582,91406.0,91400.0,0.01828]
[1767512109287,0.02587026,91405.0,91400.0,0.01828]
[1767512109482,0.010945,91407.0,91400.0,0.01828]
[1767512109483,0.02587026,91404.0,91400.0,0.01828]
[1767512109684,0.010945,91406.0,91400.0,0.01828]
[1767512109885,0.02587071,91405.0,91395.0,0.0091631]
[1767512110190,0.02587071,91404.0,91395.0,0.0091631]
[1767512110390,0.02589107,91403.0,91395.0,0.0091631]
[1767512110691,0.010945,91401.0,91392.0,0.0091631]
[1767512111083,0.010945,91404.0,91392.0,0.0091631]
[1767512111292,0.02586234,91403.0,91393.0,0.0036]
[1767512111492,0.02586234,91402.0,91393.0,0.0036]
[1767512111692,0.02586234,91401.0,91393.0,0.0036]
[1767512111893,0.010944,91408.0,91393.0,0.0036]
[1767512112193,0.010946,91399.0,91393.0,0.0036]
[1767512113794,0.02157406,91409.0,91393.0,0.0036]
[1767512113996,0.010945,91400.0,91393.0,0.0036]
[1767512114584,0.010946,91398.0,91393.0,0.0036]
[1767512114784,0.010946,91398.0,91390.0,0.00016411]
[1767512114785,0.01938608,91405.0,91390.0,0.00016411]
[1767512115093,0.010946,91397.0,91391.0,0.09304]
[1767512119697,0.010946,91397.0,91385.0,0.0201101]
[1767512119998,0.010946,91397.0,91387.0,0.09304]
[1767512120791,0.010945,91400.0,91387.0,0.09304]
[1767512121088,0.010946,91398.0,91387.0,0.09304]
[1767512122496,0.010946,91398.0,91386.0,0.0091631]
[1767512122697,0.010946,91398.0,91387.0,0.09304]
[1767512124598,0.010945,91401.0,91387.0,0.09304]
[1767512124897,0.02584047,91400.0,91387.0,0.09304]
[1767512125101,0.010945,91401.0,91387.0,0.09304]
[1767512125402,0.02584047,91400.0,91388.0,0.010947]
[1767512125589,0.010945,91401.0,91387.0,0.09304]
[1767512125789,0.02584039,91400.0,91387.0,0.09304]
[1767512125990,0.010945,91401.0,91387.0,0.09304]
[1767512126199,0.02584039,91400.0,91387.0,0.09304]
[1767512126398,0.010945,91399.0,91387.0,0.09304]
[1767512126597,0.010945,91399.0,91387.0,0.103987]
[1767512127194,0.010945,91399.0,91383.0,0.00016411]
[1767512127195,0.010946,91395.0,91383.0,0.00016411]
[1767512127798,0.010946,91398.0,91383.0,0.00016411]
[1767512127999,0.010946,91398.0,91384.0,0.010947]
[1767512128189,0.010946,91398.0,91384.0,0.0201101]
[1767512128702,0.010946,91398.0,91385.0,0.0091631]
[1767512130304,0.010946,91397.0,91385.0,0.0091631]
[1767512130493,0.03030079,91402.0,91383.0,0.00016411]
[1767512130693,0.02583937,91401.0,91383.0,0.00016411]
[1767512130895,0.02583937,91400.0,91383.0,0.00016411]
[1767512131203,0.02583937,91399.0,91383.0,0.00016411]
[1767512131403,0.010946,91394.0,91383.0,0.00016411]
[1767512132303,0.010946,91393.0,91383.0,0.00016411]
[1767512132499,0.00930787,91396.0,91378.0,0.00929502]
[1767512132802,0.010947,91390.0,91376.0,0.010948]
[1767512133003,0.010947,91390.0,91377.0,0.00926355]
[1767512134102,0.00016411,91393.0,91378.0,0.00926355]
[1767512135004,0.010946,91391.0,91378.0,0.00926355]
[1767512135805,0.00016411,91393.0,91378.0,0.02021155]
[1767512136107,0.00016411,91393.0,91379.0,0.00926355]
[1767512136404,0.00016411,91393.0,91380.0,0.010948]
[1767512136707,0.010947,91390.0,91377.0,0.010948]
[1767512137904,0.00016411,91393.0,91376.0,0.09304]
[1767512138108,0.00016411,91393.0,91377.0,0.00926355]
[1767512138508,0.00016411,91393.0,91377.0,0.10234355]
[1767512139008,0.010946,91391.0,91379.0,0.010948]
[1767512139411,0.00016411,91393.0,91379.0,0.010948]
[1767512140413,0.010946,91392.0,91379.0,0.010948]
[1767512142916,0.010947,91391.0,91377.0,0.10234355]
[1767512143215,0.010947,91391.0,91377.0,0.11329155]
[1767512143415,0.010947,91390.0,91377.0,0.11329155]
[1767512143618,0.010946,91391.0,91377.0,0.10234355]
[1767512144117,0.010947,91390.0,91377.0,0.11329155]
[1767512144717,0.010947,91388.0,91375.0,0.00992477]
[1767512145020,0.010947,91386.0,91375.0,0.09308]
[1767512145908,0.010947,91388.0,91375.0,0.11329155]
[1767512147216,0.00912113,91392.0,91375.0,0.11329155]
[1767512147217,0.010946,91391.0,91378.0,0.010948]
[1767512148119,0.010946,91391.0,91376.0,0.02021155]
[1767512148518,0.010946,91391.0,91377.0,0.00926355]
[1767512150922,0.010946,91391.0,91378.0,0.010948]
[1767512151523,0.010946,91392.0,91377.0,0.00926355]
[1767512152109,0.010947,91390.0,91377.0,0.02021155]
[1767512152516,0.010947,91390.0,91378.0,0.00926355]
[1767512153223,0.010946,91392.0,91378.0,0.00926355]
[1767512153720,0.010946,91392.0,91377.0,0.010948]
[1767512154023,0.010947,91391.0,91379.0,0.010948]
[1767512154526,0.010947,91391.0,91377.0,0.00926355]
[1767512155417,0.010947,91390.0,91377.0,0.00926355]
[1767512156226,0.010947,91390.0,91378.0,0.010948]
[1767512157523,0.010947,91390.0,91377.0,0.00926355]
[1767512158026,0.010947,91389.0,91377.0,0.00926355]
[1767512160326,0.010947,91387.0,91375.0,0.09308]
[1767512160522,0.01852104,91389.0,91375.0,0.104028]
[1767512160714,0.02581835,91388.0,91378.0,0.010948]
[1767512160919,0.010947,91391.0,91378.0,0.010948]
[1767512161123,0.02581844,91390.0,91379.0,0.010948]
[1767512161326,0.02581844,91389.0,91379.0,0.010948]
[1767512161524,0.02581844,91388.0,91379.0,0.010948]
[1767512161735,0.00016411,91393.0,91379.0,0.010948]
[1767512162030,0.02582041,91392.0,91379.0,0.010948]
[1767512162230,0.02582041,91391.0,91379.0,0.010948]
[1767512162430,0.02582041,91390.0,91379.0,0.02027236]
[1767512162731,0.02582041,91389.0,91379.0,0.02027236]
[1767512162930,0.02582041,91388.0,91379.0,0.02027236]
[1767512163133,0.02582041,91387.0,91379.0,0.02027236]
[1767512163335,0.010946,91392.0,91379.0,0.02027236]
[1767512163533,0.02579487,91391.0,91379.0,0.02027236]
[1767512163832,0.02579487,91390.0,91379.0,0.02027236]
[1767512164030,0.02579487,91389.0,91379.0,0.02027236]
[1767512164227,0.02579487,91388.0,91379.0,0.00932436]
[1767512164532,0.02579487,91387.0,91379.0,0.00932436]
[1767512164829,0.05912018,91405.0,91390.0,0.0093879]
[1767512165022,0.02579351,91404.0,91392.0,0.00932436]
[1767512165222,0.02579351,91403.0,91394.0,0.00932436]
[1767512165422,0.02579351,91402.0,91394.0,0.00932436]
[1767512165632,0.02579351,91401.0,91394.0,0.00932436]
[1767512165932,0.02579351,91400.0,91393.0,0.0203339]
[1767512166132,0.00016411,91407.0,91393.0,0.010946]
[1767512166133,0.02579351,91399.0,91393.0,0.010946]
[1767512166432,0.02579351,91398.0,91393.0,0.010946]
[1767512166628,5.1e-07,91397.0,91395.0,0.010946]
[1767512166934,0.00016411,91407.0,91395.0,0.010946]
[1767512167727,0.00016411,91407.0,91392.0,0.010946]
[1767512167927,0.00016411,91407.0,91392.0,0.02027036]
[1767512168735,0.00933417,91404.0,91388.0,0.00016411]
[1767512168936,0.00016411,91407.0,91388.0,0.00948847]
[1767512169229,0.01110911,91407.0,91390.0,0.010946]
[1767512169637,0.01110911,91407.0,91392.0,0.010946]
[1767512169935,0.00016411,91407.0,91392.0,0.010946]
[1767512170325,0.010945,91406.0,91392.0,0.010946]
[1767512170525,0.00016411,91407.0,91392.0,0.010946]
[1767512171225,0.00016411,91407.0,91394.0,0.010946]
[1767512172536,0.00016411,91407.0,91394.0,0.02027036]
[1767512172839,0.00016411,91407.0,91395.0,0.00932436]
[1767512176938,0.01110911,91407.0,91395.0,0.00932436]
[1767512178134,0.01110911,91407.0,91392.0,0.0203339]
[1767512178332,0.01110911,91407.0,91392.0,0.02965826]
[1767512178739,0.02565194,91406.0,91392.0,0.02965826]
[1767512179040,0.03659694,91405.0,91392.0,0.02965826]
[1767512179242,0.02565194,91404.0,91392.0,0.01871226]
[1767512179432,0.02565194,91403.0,91392.0,0.01871226]
[1767512179628,0.00538289,91402.0,91394.0,0.0093879]
[1767512179832,0.01110911,91407.0,91395.0,0.00932436]
[1767512180032,0.010945,91406.0,91395.0,0.00932436]
[1767512184656,0.010945,91406.0,91392.0,0.00932436]
[1767512184944,0.010945,91406.0,91393.0,0.00932436]
[1767512185152,0.010945,91405.0,91393.0,0.00932436]
[1767512185947,0.010945,91404.0,91393.0,0.00932436]
[1767512187354,0.010945,91403.0,91393.0,0.00932436]
[1767512188247,0.010945,91402.0,91393.0,0.00932436]
[1767512188747,0.010945,91404.0,91393.0,0.00932436]
[1767512191448,0.06906414,91422.0,91402.0,0.00996468]
[1767512191660,0.02551491,91421.0,91405.0,0.00996468]
[1767512191953,0.02551491,91420.0,91408.0,0.00996468]
[1767512192153,0.02551491,91419.0,91408.0,0.00996468]
[1767512192356,0.02551491,91418.0,91408.0,0.00996468]
[1767512192555,0.02551491,91417.0,91408.0,0.00996468]
[1767512192755,0.02551491,91416.0,91408.0,0.00996468]
[1767512192955,0.02551491,91415.0,91408.0,0.00996468]
[1767512193151,0.00016411,91422.0,91408.0,0.00996468]
[1767512194949,0.00016411,91422.0,91411.0,0.00964884]
[1767512195148,0.010942,91427.0,91414.0,0.00964884]
[1767512195347,0.01012974,91433.0,91414.0,0.00964884]
[1767512195560,0.01012974,91432.0,91414.0,0.00964884]
[1767512195755,0.010942,91430.0,91415.0,0.010943]
[1767512195954,0.010942,91430.0,91415.0,0.02059184]
[1767512196550,0.01029385,91432.0,91417.0,0.010943]
[1767512198059,0.010942,91431.0,91418.0,0.00964884]
[1767512199460,0.00016411,91432.0,91419.0,0.00964884]
[1767512199664,0.00016411,91432.0,91419.0,0.02059184]
[1767512199852,0.00016411,91432.0,91420.0,0.00964884]
[1767512200049,0.00016411,91432.0,91420.0,0.0571065]
[1767512200251,0.010941,91434.0,91422.0,0.00964884]
[1767512200946,0.09304,91443.0,91423.0,0.010943]
[1767512201151,0.010941,91436.0,91424.0,0.00964884]
[1767512201761,0.01094,91442.0,91427.0,0.00964884]
[1767512201962,0.10316974,91449.0,91431.0,0.00964884]
[1767512202462,0.01094,91445.0,91431.0,0.00964884]
[1767512202853,0.10316974,91449.0,91431.0,0.00964884]
[1767512203049,0.01094,91445.0,91431.0,0.00964884]
[1767512203458,0.10316974,91449.0,91431.0,0.00964884]
[1767512203660,0.010939,91451.0,91437.0,0.00964884]
[1767512203866,0.09304,91457.0,91440.0,0.00964884]
[1767512204058,0.010939,91454.0,91440.0,0.00964884]
[1767512204362,0.010939,91452.0,91440.0,0.00964884]
[1767512207764,0.010939,91455.0,91440.0,0.0680465]
[1767512207960,0.010939,91453.0,91440.0,0.02058884]
[1767512208169,0.010939,91453.0,91440.0,0.00964884]
[1767512208557,0.010939,91451.0,91440.0,0.00964884]
[1767512208967,0.010939,91454.0,91440.0,0.00964884]
[1767512209371,0.010939,91454.0,91441.0,0.00964884]
[1767512211964,0.02092968,91464.0,91442.0,0.00964884]
[1767512212169,0.02473469,91463.0,91443.0,0.00964884]
[1767512212369,0.02473469,91462.0,91443.0,0.00964884]
[1767512212555,0.010939,91455.0,91443.0,0.00964884]
[1767512214262,0.010939,91456.0,91443.0,0.00964884]
[1767512214967,0.02012142,91463.0,91443.0,0.00964884]
[1767512215169,0.00999168,91486.0,91462.0,0.00964884]
[1767512215368,0.010936,91482.0,91470.0,0.04745766]
[1767512215868,0.01012974,91485.0,91467.0,0.11362584]
[1767512216169,0.01012974,91485.0,91467.0,0.10268884]
[1767512216362,0.01012974,91484.0,91467.0,0.10268884]
[1767512216770,0.01012974,91484.0,91460.0,0.04745766]
[1767512216771,0.00999168,91470.0,91431.0,0.00964884]
[1767512216972,0.00999168,91449.0,91418.0,0.00973122]
[1767512217161,0.00999168,91449.0,91409.0,0.01313198]
[1767512217162,0.02106974,91446.0,91423.0,0.00964884]
[1767512217363,0.01094,91443.0,91427.0,0.00964884]
[1767512217666,0.010941,91441.0,91428.0,0.10264884]
[1767512217869,0.00016371,91444.0,91425.0,0.00016402]
[1767512218062,0.01012974,91438.0,91413.0,0.00973122]
[1767512218274,0.010943,91417.0,91414.0,0.093]
[1767512218569,0.010943,91417.0,91400.0,0.04745766]
[1767512218570,0.010944,91414.0,91409.0,9.8e-07]
[1767512218873,0.01012974,91423.0,91409.0,9.8e-07]
[1767512219075,0.010943,91422.0,91409.0,9.8e-07]
[1767512219259,0.010943,91422.0,91406.0,0.00016402]
[1767512219463,0.010943,91422.0,91407.0,0.093]
[1767512219665,0.00016402,91425.0,91411.0,0.02059284]
[1767512219968,0.00016402,91425.0,91410.0,0.04745766]
[1767512219969,0.00016402,91425.0,91413.0,0.010944]
[1767512220276,0.010941,91434.0,91415.0,0.00945173]
[1767512220664,0.010942,91432.0,91415.0,0.00945173]
[1767512221272,0.010942,91429.0,91411.0,0.00945173]
[1767512221574,0.01110471,91433.0,91413.0,0.00945173]
[1767512221974,0.04745766,91430.0,91413.0,0.00945173]
[1767512222476,0.02318079,91429.0,91409.0,0.03319153]
[1767512222876,0.02318079,91429.0,91412.0,0.010944]
[1767512224075,0.02318079,91429.0,91413.0,0.09304]
[1767512225281,0.02318079,91429.0,91414.0,0.010944]
[1767512226078,0.01223879,91429.0,91414.0,0.010944]
[1767512227082,0.01223879,91429.0,91415.0,0.09304]
[1767512228180,0.01223879,91429.0,91416.0,0.010943]
[1767512228393,0.00016371,91433.0,91423.0,0.010943]
[1767512228581,0.093,91438.0,91423.0,0.010943]
[1767512228977,0.01094,91445.0,91425.0,0.00945173]
[1767512229190,0.01094,91445.0,91411.0,0.010944]
[1767512229191,0.010939,91452.0,91435.0,0.02039273]
[1767512229481,0.02478452,91451.0,91435.0,0.02039273]
[1767512229681,0.010939,91452.0,91435.0,0.02039273]
[1767512229989,0.02478342,91451.0,91435.0,0.02039273]
[1767512230174,0.010939,91452.0,91437.0,0.00945173]
[1767512230377,0.010939,91455.0,91438.0,0.00945173]
[1767512230578,0.02478426,91454.0,91438.0,0.00945173]
[1767512230776,0.02478426,91453.0,91437.0,0.010941]
[1767512230973,0.010939,91455.0,91437.0,0.010941]
[1767512231177,0.0247842,91454.0,91436.0,0.09304]
[1767512231385,0.0247842,91453.0,91436.0,0.09304]
[1767512231581,0.010939,91455.0,91436.0,0.09304]
[1767512231582,0.04745766,91450.0,91436.0,0.09304]
[1767512231974,0.010939,91455.0,91439.0,0.00218726]
[1767512232178,0.02478546,91454.0,91439.0,0.00218726]
[1767512232375,0.010939,91455.0,91439.0,0.00218726]
[1767512232591,0.010939,91453.0,91439.0,0.00218726]
[1767512235190,0.02212272,91452.0,91439.0,0.00218726]
[1767512235395,0.01094,91446.0,91439.0,0.00218726]
[1767512236382,0.02317879,91449.0,91439.0,0.00218726]
[1767512236774,0.010939,91452.0,91439.0,0.00218726]
[1767512236990,0.04745766,91450.0,91439.0,0.00218726]
[1767512237384,0.08051938,91450.0,91439.0,0.00218726]
[1767512238980,0.01094,91448.0,91439.0,0.00218726]
[1767512239385,0.01094,91446.0,91439.0,0.00218726]
[1767512239588,0.08051938,91450.0,91439.0,0.00218726]
[1767512239785,0.01094,91448.0,91439.0,0.00218726]
[1767512246291,0.03306272,91448.0,91439.0,0.00218726]
[1767512246697,0.03306272,91448.0,91440.0,0.01942]
[1767512248505,0.02317879,91447.0,91440.0,0.01942]
[1767512248800,0.00988393,91469.0,91448.0,0.02039173]
[1767512248990,0.010937,91467.0,91451.0,0.010939]
[1767512249197,0.02515295,91466.0,91451.0,0.010939]
[1767512249397,0.02515295,91465.0,91451.0,0.010939]
[1767512249607,0.02515295,91464.0,91451.0,0.010939]
[1767512249800,0.02515295,91463.0,91451.0,0.010939]
[1767512250105,0.24635766,91470.0,91451.0,0.010939]
[1767512250297,0.02524057,91469.0,91452.0,0.010939]
[1767512250496,0.02524057,91468.0,91450.0,0.00960146]
[1767512250801,0.03617757,91467.0,91450.0,0.02054046]
[1767512251001,0.0092747,91465.0,91450.0,0.010939]
[1767512251208,0.0092747,91464.0,91450.0,0.010939]
[1767512252697,0.0092747,91464.0,91448.0,0.093]
[1767512252904,0.0092747,91464.0,91450.0,0.010939]
[1767512253108,0.0092747,91464.0,91453.0,0.010939]
[1767512254210,0.01437018,91467.0,91453.0,0.010939]
[1767512254403,0.01437018,91467.0,91456.0,0.010939]
[1767512254602,0.010936,91474.0,91456.0,0.00968084]
[1767512254907,0.00921883,91475.0,91456.0,0.00968084]
[1767512255311,0.03445309,91474.0,91456.0,0.00968084]
[1767512255610,0.00921883,91474.0,91456.0,0.00968084]
[1767512256007,0.00921883,91474.0,91460.0,0.010938]
[1767512256714,0.00921883,91473.0,91460.0,0.010938]
[1767512257706,0.00921883,91473.0,91462.0,0.010938]
[1767512258912,0.01347239,91474.0,91462.0,0.010938]
[1767512259218,0.01347239,91474.0,91455.0,0.00968084]
[1767512260109,0.02440939,91474.0,91455.0,0.00968084]
[1767512260315,0.03362822,91474.0,91455.0,0.00968084]
[1767512261417,0.03362822,91474.0,91462.0,0.010938]
[1767512262410,0.010937,91472.0,91455.0,0.00968084]
[1767512263105,0.02269122,91474.0,91460.0,0.010938]
[1767512263907,0.010937,91473.0,91460.0,0.010938]
[1767512264204,0.010937,91473.0,91461.0,0.010938]
[1767512264407,0.010936,91476.0,91463.0,0.010938]
[1767512264615,0.010936,91476.0,91464.0,0.010938]
[1767512265214,0.03362722,91480.0,91466.0,0.010937]
[1767512265414,0.02521551,91479.0,91466.0,0.010937]
[1767512265605,0.03362722,91480.0,91461.0,0.00968084]
[1767512265927,0.010935,91485.0,91471.0,0.010937]
[1767512266114,0.02521413,91484.0,91471.0,0.010937]
[1767512266320,0.10647239,91486.0,91473.0,0.010937]
[1767512266321,0.01347239,91486.0,91473.0,0.010937]
[1767512266715,0.01347239,91486.0,91470.0,0.00016402]
[1767512266716,0.03362622,91486.0,91470.0,0.01110102]
[1767512267116,0.00921883,91485.0,91472.0,0.010937]
[1767512267618,0.10647239,91493.0,91474.0,0.00968084]
[1767512267822,0.010935,91487.0,91473.0,0.01400843]
[1767512268017,0.010935,91487.0,91472.0,0.010937]
[1767512268421,0.010935,91485.0,91470.0,0.00016402]
[1767512268617,0.02015383,91485.0,91470.0,0.00016402]
[1767512268917,0.02269122,91490.0,91470.0,0.01417245]
[1767512269113,0.093,91507.0,91470.0,0.01417245]
[1767512269114,0.00921883,91487.0,91470.0,0.00016402]
[1767512269314,0.01347239,91486.0,91470.0,0.00016402]
[1767512269521,0.00921883,91483.0,91471.0,0.093]
[1767512270120,0.010934,91491.0,91472.0,0.02061784]
[1767512270421,0.00921883,91490.0,91472.0,0.010937]
[1767512270718,0.00921883,91489.0,91472.0,0.010937]
[1767512270920,0.00921883,91489.0,91473.0,0.093]
[1767512271222,0.00921883,91488.0,91473.0,0.093]
[1767512272125,0.00921883,91488.0,91474.0,0.01703]
[1767512272317,0.00921883,91486.0,91474.0,0.01703]
[1767512272624,0.010935,91485.0,91474.0,0.01703]
[1767512272828,0.03265822,91499.0,91478.0,0.00968084]
[1767512273127,0.02269122,91508.0,91489.0,0.00968084]
[1767512273308,0.010934,91497.0,91489.0,0.09316392]
[1767512275025,0.01347239,91500.0,91489.0,0.09316392]
[1767512275215,0.02269122,91500.0,91489.0,0.09316392]
[1767512275409,0.02269122,91509.0,91489.0,0.09316392]
[1767512275610,0.0253524,91508.0,91489.0,0.09316392]
[1767512275810,0.01347239,91506.0,91489.0,0.09316392]
[1767512276020,0.01347239,91505.0,91489.0,0.09316392]
[1767512276224,0.010934,91498.0,91489.0,0.09316392]
[1767512276430,0.02269122,91505.0,91489.0,0.09316392]
[1767512276725,0.02269122,91510.0,91490.0,0.00968084]
[1767512276922,0.02535277,91509.0,91490.0,0.00968084]
[1767512277120,0.04804399,91508.0,91490.0,0.00968084]
[1767512277323,0.03882516,91507.0,91489.0,0.09316392]
[1767512277516,0.02269122,91504.0,91489.0,0.09316392]
[1767512278116,0.02269122,91504.0,91489.0,0.00016392]
[1767512278325,0.010933,91501.0,91489.0,0.00016392]
[1767512279020,0.02269122,91504.0,91489.0,0.00016392]
[1767512279326,0.010933,91500.0,91489.0,0.00016392]
[1767512280819,0.010934,91499.0,91489.0,0.00016392]
[1767512282428,0.01382881,91489.0,91474.0,0.027966]
[1767512282626,0.01382881,91489.0,91480.0,0.09296]
[1767512283019,0.01382881,91489.0,91476.0,0.010936]
[1767512283215,0.01382881,91489.0,91477.0,0.09296]
[1767512283621,0.00016361,91492.0,91481.0,0.00924]
[1767512283828,0.00016361,91492.0,91481.0,0.02241561]
[1767512284029,0.00016361,91492.0,91482.0,0.00924]
[1767512284229,0.00016361,91492.0,91478.0,0.00924]
[1767512284432,0.00016361,91492.0,91477.0,0.09296]
[1767512284617,0.00016361,91492.0,91478.0,0.010936]
[1767512285522,0.02367947,91491.0,91474.0,0.01719392]
[1767512285723,0.010935,91489.0,91475.0,0.09296]
[1767512288022,0.010935,91487.0,91475.0,0.09296]
[1767512288823,0.010935,91485.0,91475.0,0.09296]
[1767512289225,0.010935,91485.0,91476.0,0.01918]
[1767512289929,0.02367947,91486.0,91474.0,0.00016392]
[1767512290228,0.010936,91475.0,91469.0,0.00218655]
[1767512291033,0.010936,91478.0,91469.0,0.00218655]
[1767512291234,0.010936,91478.0,91470.0,0.01697]
[1767512291433,0.010936,91476.0,91470.0,0.01697]
[1767512291735,0.02367947,91480.0,91470.0,0.01697]
[1767512291935,0.01382881,91480.0,91470.0,0.01697]
[1767512296124,0.00985066,91483.0,91470.0,0.027907]
[1767512296744,0.02367947,91483.0,91470.0,0.01697]
[1767512297238,0.01382881,91473.0,91464.0,0.09296]
[1767512297434,0.03461547,91478.0,91464.0,0.09296]
[1767512297633,0.02367947,91477.0,91464.0,0.09296]
[1767512298043,0.02367947,91469.0,91456.0,0.09296]
[1767512298231,0.02367947,91469.0,91459.0,0.010938]
[1767512298542,0.01382881,91469.0,91458.0,0.010938]
[1767512298738,0.01382881,91475.0,91460.0,0.018518]
[1767512298930,0.010936,91476.0,91460.0,0.00758]
[1767512300535,0.02384339,91477.0,91462.0,0.010938]
[1767512301827,0.03477939,91477.0,91462.0,0.010938]
[1767512302032,0.02384339,91477.0,91460.0,0.00758]
[1767512302432,0.02367947,91476.0,91460.0,0.00758]
[1767512303344,0.010936,91475.0,91460.0,0.00758]
[1767512303734,0.02476481,91475.0,91460.0,0.00758]
[1767512303943,0.03461547,91475.0,91460.0,0.00758]
[1767512304637,0.01382881,91474.0,91461.0,0.010938]
[1767512304943,0.01382881,91473.0,91461.0,0.010938]
[1767512305134,0.01382881,91473.0,91460.0,0.00758]
[1767512305843,0.01382881,91473.0,91460.0,0.018518]
[1767512306843,0.02384339,91477.0,91462.0,0.010938]
[1767512308039,0.02384339,91477.0,91460.0,0.00758]
[1767512308233,0.02384339,91477.0,91463.0,0.010938]
[1767512308434,0.02367947,91476.0,91463.0,0.010938]
[1767512308634,0.02367947,91475.0,91463.0,0.010938]
[1767512310446,0.02367947,91475.0,91460.0,0.00758]
[1767512310636,0.02382809,91474.0,91460.0,0.00758]
[1767512311542,0.02382809,91473.0,91460.0,0.00758]
[1767512312133,0.03476509,91472.0,91460.0,0.00758]
[1767512312337,0.02382809,91471.0,91460.0,0.00758]
[1767512312537,0.02382809,91471.0,91459.0,0.00016392]
[1767512312841,0.01479876,91470.0,91459.0,0.00016392]
[1767512314541,0.0622007,91470.0,91459.0,0.00016392]
[1767512315850,0.0622007,91470.0,91460.0,0.010938]
[1767512316246,0.0622007,91470.0,91461.0,0.010938]
[1767512318253,0.0622007,91470.0,91459.0,0.00016392]
[1767512318254,0.0622007,91470.0,91462.0,0.010938]
[1767512322053,0.0622007,91470.0,91464.0,0.010938]
[1767512322355,0.0622007,91470.0,91459.0,0.00016392]
[1767512323145,0.01479876,91469.0,91465.0,0.010938]
[1767512323553,0.01479876,91469.0,91462.0,0.010938]
[1767512323752,0.01479876,91469.0,91463.0,0.010938]
[1767512325455,0.01479876,91469.0,91461.0,0.010938]
[1767512326261,0.01479876,91469.0,91463.0,0.010938]
[1767512327855,0.01479876,91469.0,91459.0,0.00016392]
[1767512329159,0.01479876,91469.0,91461.0,0.010938]
[1767512329363,0.01479876,91469.0,91459.0,0.00016392]
[1767512329863,0.01479876,91469.0,91462.0,0.010938]
[1767512333369,0.01479876,91469.0,91464.0,0.010938]
[1767512333578,0.01479876,91469.0,91463.0,0.010938]
[1767512333875,0.01479876,91469.0,91459.0,0.00016392]
[1767512334079,0.01479876,91469.0,91462.0,0.010938]
[1767512334579,0.01479876,91469.0,91463.0,0.010938]
[1767512335981,0.01479876,91469.0,91464.0,0.010938]
[1767512337780,0.01479876,91469.0,91461.0,0.010938]
[1767512338082,0.01479876,91469.0,91463.0,0.010938]
[1767512338473,0.01479876,91469.0,91464.0,0.010938]
[1767512339784,0.01479876,91469.0,91462.0,0.010938]
[1767512340276,0.01479876,91469.0,91465.0,0.010938]
[1767512340476,0.01479876,91469.0,91459.0,0.00016392]
[1767512340674,0.01411733,91467.0,91459.0,0.00016392]
[1767512341080,0.01411733,91467.0,91459.0,0.01110192]
[1767512341578,0.01411733,91467.0,91459.0,0.00016392]
[1767512342388,0.02316139,91461.0,91450.0,0.010939]
[1767512342583,0.01411733,91457.0,91452.0,0.010939]
[1767512343982,0.01411733,91457.0,91454.0,0.010939]
[1767512344489,0.02316139,91461.0,91445.0,0.09316401]
[1767512344689,0.01411733,91460.0,91449.0,0.010939]
[1767512344890,0.01411733,91456.0,91446.0,0.01094]
[1767512345580,0.01411733,91456.0,91448.0,0.01094]
[1767512346186,0.01411733,91456.0,91445.0,0.09316401]
[1767512346579,0.01411733,91456.0,91448.0,0.01094]
[1767512350789,0.01411733,91456.0,91450.0,0.010939]
[1767512350990,0.01411733,91456.0,91447.0,0.01094]
[1767512351687,0.01411733,91456.0,91449.0,0.010939]
[1767512353194,0.01411733,91454.0,91445.0,0.00016401]
[1767512353396,0.01411733,91453.0,91445.0,0.00016401]
[1767512353594,0.04740194,91455.0,91442.0,0.01094]
[1767512353595,0.02316139,91452.0,91442.0,0.01094]
[1767512353796,0.02316139,91452.0,91441.0,0.093]
[1767512354095,0.04740194,91451.0,91444.0,0.01094]
[1767512354397,0.02316139,91452.0,91444.0,0.01094]
[1767512354586,0.02316139,91452.0,91446.0,0.01094]
[1767512354984,0.02316139,91451.0,91441.0,0.093]
[1767512355191,0.01411733,91450.0,91443.0,0.01094]
[1767512355701,0.01411733,91450.0,91445.0,0.01094]
[1767512356398,0.01411733,91450.0,91441.0,0.093]
[1767512356598,0.00016401,91459.0,91443.0,0.01094]
[1767512356794,8.2e-07,91458.0,91448.0,0.00972162]
[1767512356999,0.01411733,91472.0,91452.0,0.00972162]
[1767512357193,0.04740194,91470.0,91455.0,0.00972162]
[1767512357594,0.01411733,91472.0,91455.0,0.00972162]
[1767512357794,0.04740194,91470.0,91455.0,0.00972162]
[1767512358296,0.04740194,91470.0,91460.0,0.010938]
[1767512360505,0.06151927,91470.0,91460.0,0.010938]
[1767512361306,0.06151927,91470.0,91462.0,0.010938]
[1767512364800,0.06151927,91470.0,91464.0,0.010938]
[1767512365000,0.01411733,91470.0,91464.0,0.010938]
[1767512367212,0.01411733,91470.0,91458.0,0.00016401]
[1767512368007,0.01411733,91470.0,91461.0,0.010938]
[1767512368902,0.02579675,91469.0,91461.0,0.010938]
[1767512369103,0.02579675,91468.0,91461.0,0.010938]
[1767512369300,0.02579675,91467.0,91461.0,0.010938]
[1767512369505,0.02579675,91466.0,91461.0,0.010938]
[1767512369804,0.02579675,91465.0,91461.0,0.010938]
[1767512370006,0.02579675,91464.0,91461.0,0.010938]
[1767512370308,0.02579675,91463.0,91459.0,0.010938]
[1767512370510,0.02579675,91462.0,91459.0,0.010938]
[1767512370700,0.02579675,91461.0,91459.0,0.010938]
[1767512370903,0.01411733,91470.0,91459.0,0.010938]
[1767512371209,0.02580217,91469.0,91459.0,0.010938]
[1767512371414,0.02580217,91468.0,91459.0,0.010938]
[1767512371606,0.02580217,91467.0,91459.0,0.010938]
[1767512371801,0.01411733,91470.0,91458.0,0.00016401]
[1767512371802,0.02580217,91466.0,91458.0,0.01110201]